[Event "Israel National League 2024"]
[Site "Israel"]
[Date "2024.03.08"]
[Round "11.29"]
[White "Rozentalis, Eduardas"]
[Black "Lavi, Idan"]
[Result "1-0"]
[ECO "C68"]
[WhiteElo "2455"]
[BlackElo "2118"]
[Annotator "TA"]
[PlyCount "86"]
[EventDate "2024.01.07"]
[EventType "team-tourn"]
[EventCountry "ISR"]
[SourceTitle "playchess.com"]
[Source "ChessBase"]
[SourceQuality "1"]
[TimeControl "40/5400+30:1800+30"]

{[%evp 10,86,-2,-12,-7,-11,0,-12,0,-52,-11,-40,-16,-27,11,11,18,-32,-15,-31,-7,0,0,7,64,56,110,100,106,56,53,0,0,0,0,1,0,-21,14,0,0,0,0,0,121,173,149,148,246,240,240,193,284,301,277,225,238,230,196,72,194,12,306,292,282,258,650,647,583,573,522,161,1005,1003,1234,1130,2631,574,29999]} 1. e4 {[%emt 0:04:00]} e5 {[%emt 0:00:17]} 2. Nf3 {[%emt 0:00:14]} Nc6 {[%emt 0:00:17]} 3. Bb5 {[%emt 0:00:22]} a6 {[%emt 0:00:15]} 4. Bxc6 {[%emt 0:00:21]} dxc6 {[%emt 0:00:32]} 5. d3 {[%emt 0:00:19]} Bd6 {[%emt 0:00:28]} 6. Be3 {[%emt 0:01:03]} Ne7 {[%emt 0:00:35]} 7. Nbd2 {[%emt 0:01:39]} Ng6 {[%emt 0:00:39]} 8. h3 {[%emt 0:04:47]} O-O {[%emt 0:06:41] The position is equal.} 9. g4 {[%emt 0:00:39]} ({White should try} 9. O-O $11) 9... Re8 {[%emt 0:08:08]} 10. Qe2 {[%emt 0:02:22]} c5 {[%emt 0:05:57]} 11. O-O-O {[%emt 0:02:34]} Nf4 {[%emt 0:07:55]} 12. Bxf4 {[%emt 0:01:10]} exf4 {[%emt 0:00:09]} 13. g5 {[%emt 0:04:17]} (13. e5 $1 $11) 13... Be6 {[%emt 0:06:40]} 14. Kb1 {[%emt 0:03:30]} Qd7 {[%emt 0:09:02][%cal Oa6a5]} 15. h4 {[%emt 0:01:08]} Rad8 {[%emt 0:05:43]} 16. h5 {[%emt 0:08:48]} Bg4 {[%emt 0:06:30]} (16... b5 $1 $11) 17. Rdg1 $14 {[%emt 0:02:48]} Be7 {[%emt 0:08:24]} (17... Qe6 $14) 18. Rh4 $16 {[%emt 0:02:18]} Bxf3 {[%emt 0:03:48]} 19. Qxf3 {[%emt 0:02:51]} (19. Nxf3 $16 c4 20. d4 (20. Rxf4 cxd3 21. cxd3 Qxd3+ 22. Qxd3 Rxd3 $11) (20. dxc4 Bd6 $16)) 19... h6 $14 {[%emt 0:03:28]} 20. Rxf4 {[%emt 0:13:06]} ({White should play} 20. gxh6 $1 $14 Bxh4 21. Qxf4) 20... Bxg5 $11 {[%emt 0:00:25]} 21. Rfg4 $1 {[%emt 0:00:08][%cal Of3g2] And now Qg2! would win.} f5 {[%emt 0:03:22]} 22. Rxg5 {[%emt 0:00:42]} (22. exf5 Bxd2 23. Rxg7+ Qxg7 24. Rxg7+ Kxg7 $17) 22... hxg5 {[%emt 0:00:24]} 23. Rxg5 {[%emt 0:00:35]} Qe7 {[%emt 0:14:24]} 24. Rxf5 {[%emt 0:04:26]} Rf8 {[%emt 0:00:10]} 25. a3 {[%emt 0:02:35]} Rxf5 {[%emt 0:00:25]} 26. Qxf5 {[%emt 0:00:14][%mdl 4096] Endgame. KQR-KQN} b6 {[%emt 0:00:38]} (26... Rf8 $11 {remains equal.} 27. Qd5+ Kh7 28. Qxb7 Qg5 (28... Rxf2 29. Nc4 $17)) 27. f4 $16 {[%emt 0:03:02][%cal Bf2f4,Bf4f5][%mdl 32]} Rf8 {[%emt 0:01:15]} 28. Qg4 {[%emt 0:02:36]} b5 {[%emt 0:01:48]} (28... Rf6 $16 {was necessary.}) 29. Nf3 {[%emt 0:06:28]} Qf6 {[%emt 0:01:55]} 30. f5 {[%emt 0:00:59]} c4 {[%emt 0:01:25]} (30... a5 {was called for.} 31. Ng5 b4 32. axb4 cxb4) 31. d4 $18 {[%emt 0:02:25]} a5 {[%emt 0:00:58]} 32. Ng5 {[%emt 0:03:56]} b4 {[%emt 0:01:19] [#] ...bxa3 is the strong threat.} 33. Ne6 {[%emt 0:04:25]} Rf7 {[%emt 0:00:11]} 34. Qg3 {[%emt 0:05:09]} (34. a4 $18 {is more deadly.}) 34... Rd7 {[%emt 0:01:12]} (34... Qh6 $16) 35. Qe1 $2 {[%emt 0:05:11]} (35. Nxc7 $2 Qxd4 36. axb4 axb4 $19 (36... Qxe4 37. Ne6 $17)) (35. Ka2 $18) 35... c3 $2 {[%emt 0:01:28][%mdl 8192]} 36. bxc3 {[%emt 0:00:50]} bxa3 {[%emt 0:00:13]} 37. Ka2 {[%emt 0:01:23][%cal Oe1g3] Black must now prevent Qg3!} c6 $2 {[%emt 0:01:04]} (37... Re7 38. Qe3 (38. Kxa3 Qh6 $11) 38... Re8) 38. Qb1 {[%emt 0:00:51] [#] Strongly threatening Qb8+.} Kh7 {[%emt 0:00:37]} 39. Qb8 {[%emt 0:00:37]} Rf7 {[%emt 0:00:14] Prevents Nf8+} 40. Qc8 $2 {[%emt 0:03:39]} (40. Qe8) 40... Qe7 $2 {[%emt 0:00:33]} (40... Qh6) 41. Qxc6 {[%emt 0:30:22][%cal Oe6g5] Ng5+! would kill now. White is clearly winning.} Rf6 {[%emt 0:25:30]} 42. Qc8 {[%emt 0:00:00]} Qd6 {[%emt 0:05:30]} 43. Qb7 {[%emt 0:00:00]} (43. h6 $142 Rxe6 44. fxe6 (44. hxg7 Kxg7 45. Qxe6 Qf8 $18) 44... Kxh6 45. Qh8+ Kg6 46. Qe8+ Kg5 47. e7) 43... a4 {[%emt 0:01:32] Weighted Error Value: White=0.55/Black=0.55.  Loses game:     	---       	Black=1      Missed win:     	White=1     	---        Mistake:       	White=6     	Black=8      Inaccurate:     	---       	Black=3      OK:         	White=14    	Black=9      Best:        	White=3     	Black=1      Strong:       	White=1     	---} 1-0

[Event "Israel National League 2024"]
[Site "Israel"]
[Date "2024.03.08"]
[Round "11.30"]
[White "Erenberg, Shlomy"]
[Black "Livshits, Gaby"]
[Result "1/2-1/2"]
[ECO "A24"]
[WhiteElo "2103"]
[BlackElo "2450"]
[Annotator "TA"]
[PlyCount "148"]
[EventDate "2024.01.07"]
[EventType "team-tourn"]
[EventCountry "ISR"]
[SourceTitle "playchess.com"]
[Source "ChessBase"]
[SourceQuality "1"]
[TimeControl "40/5400+30:1800+30"]

{[%evp 21,148,8,1,8,21,14,14,8,8,9,31,16,26,17,27,12,16,14,24,17,79,89,158,182,149,145,152,161,150,164,180,160,162,77,73,73,77,91,79,68,68,68,118,118,120,118,114,106,140,137,125,131,140,139,144,104,104,104,104,104,104,104,144,104,104,104,104,104,104,97,104,104,104,97,97,97,97,40,104,104,104,104,104,97,97,97,97,97,97,97,97,50,97,50,50,0,97,97,97,97,97,97,102,50,57,25,25,25,25,25,25,25,25,25,25,25,25,25,25,25,25,25,25,25,25,31,39,46,46]} 1. Nf3 {[%emt 0:00:30]} Nf6 {[%emt 0:04:48]} 2. g3 {[%emt 0:00:44]} g6 {[%emt 0:01:25]} 3. Bg2 {[%emt 0:00:34]} Bg7 {[%emt 0:00:03]} 4. O-O {[%emt 0:00:15]} d6 {[%emt 0:00:23]} 5. c4 {[%emt 0:03:18]} O-O {[%emt 0:04:21]} 6. Nc3 {[%emt 0:00:58]} e5 {[%emt 0:02:23]} 7. d3 {[%emt 0:04:12]} a5 {[%emt 0:02:48]} 8. Rb1 {[%emt 0:02:09] A24: Englische Eröffnung.} Bd7 {[%emt 0:05:08]} 9. b3 {[%emt 0:01:06]} Qc8 {[%emt 0:03:20]} 10. Re1 $146 {[%emt 0:00:35]} ({Predecessor:} 10. e4 Nc6 11. Nd5 Nxd5 12. cxd5 Nb4 13. a3 Na6 14. Be3 f5 15. exf5 gxf5 16. Ng5 {½-½ Demeter,P (2238)-Mrva,M (2494) SVK-ch Trencianske Teplice 2005 (4)}) 10... Bh3 {[%emt 0:04:07]} 11. Bh1 {[%emt 0:00:04]} Na6 {[%emt 0:01:12]} 12. a3 {[%emt 0:00:56]} Nc5 {[%emt 0:00:44]} 13. b4 {[%emt 0:00:27]} axb4 {[%emt 0:00:07]} 14. axb4 {[%emt 0:00:01]} Ne6 {[%emt 0:00:46]} 15. Ng5 {[%emt 0:01:47]} Nxg5 {[%emt 0:00:34]} 16. Bxg5 {[%emt 0:00:01]} h6 {[%emt 0:02:04]} 17. Bd2 {[%emt 0:00:12]} Kh7 {[%emt 1:04:47]} 18. Ra1 {[%emt 0:02:18]} (18. Qb3 {ist interessant.} Ng4 19. Bf3 f5 20. c5) 18... Rxa1 {[%emt 0:00:00]} 19. Qxa1 {[%emt 0:00:01]} c6 {[%emt 0:00:00]} 20. Qa7 {[%emt 0:05:15]} Ng4 {[%emt 0:00:00]} (20... Be6 $11 {hält das Gleichgewicht.}) 21. b5 $16 {[%emt 0:05:24]} f5 {[%emt 0:00:00]} (21... Nf6 $142) 22. bxc6 {[%emt 0:01:58]} bxc6 {[%emt 0:02:30]} 23. Rb1 {[%emt 0:14:04]} Qa8 {[%emt 0:00:00]} 24. Qxa8 {[%emt 0:03:14]} Rxa8 {[%emt 0:00:00]} 25. Bxc6 {[%emt 0:00:02]} Ra6 {[%emt 0:00:00]} 26. Bb7 {[%emt 0:53:25]} Ra3 {[%emt 0:00:00]} 27. f3 {[%emt 0:00:30]} (27. Be1 $18 {ist viel giftiger.}) 27... e4 $16 {[%emt 0:00:00]} 28. fxg4 {[%emt 0:00:00]} Bd4+ {[%emt 0:00:00]} 29. Kh1 {[%emt 0:00:00]} Bxc3 {[%emt 0:00:00]} 30. Bxc3 {[%emt 0:00:00]} Rxc3 {[%emt 0:00:00]} 31. gxf5 {[%emt 0:00:00]} gxf5 {[%emt 0:00:00]} (31... exd3 $14 32. fxg6+ Kxg6 33. exd3 Kf6) 32. dxe4 $16 {[%emt 0:00:00]} Rxc4 {[%emt 0:00:00]} 33. exf5 {[%emt 0:00:00]} Bxf5 {[%emt 0:00:00]} 34. Rd1 {[%emt 0:00:00]} Be4+ {[%emt 0:00:00]} 35. Bxe4+ {[%emt 0:00:00]} Rxe4 {[%emt 0:00:00]} 36. Rd2 {[%emt 0:00:00]} ({Keinesfalls} 36. Rxd6 $6 Rxe2 37. Rd4 Kg6 $14) 36... Kg7 {[%emt 0:00:00]} 37. Kg2 {[%emt 0:00:00]} ({Bloß nicht} 37. Rxd6 $6 Rxe2 38. Rd5 Kf7 $14) 37... d5 {[%emt 0:00:00]} 38. Kf3 {[%emt 0:00:00]} ({Natürlich nicht} 38. Rxd5 $6 Rxe2+ 39. Kg1 Ra2 $11) 38... Re5 {[%emt 0:00:00]} 39. e3 {[%emt 0:00:00]} Rf5+ {[%emt 0:00:00]} 40. Ke2 {[%emt 0:00:00]} Kf6 {[%emt 0:00:00]} 41. Rd4 {[%emt 0:07:21]} Ke5 {[%emt 0:21:03]} 42. Rh4 {[%emt 0:00:16]} h5 {[%emt 0:02:39]} 43. Rf4 {[%emt 0:00:02]} Rg5 {[%emt 0:00:05]} 44. Kf3 {[%emt 0:00:25]} Rg8 {[%emt 0:00:55]} 45. Rf7 {[%emt 0:01:06]} Ke6 {[%emt 0:16:48]} 46. Rh7 $1 {[%emt 0:00:19]} Rg5 {[%emt 0:00:00]} 47. Rh8 {[%emt 0:00:18]} Rf5+ {[%emt 0:00:00]} 48. Ke2 {[%emt 0:00:03]} Rg5 {[%emt 0:00:00]} 49. Rf8 {[%emt 0:03:00]} (49. Kf2 $16) 49... Ke7 {[%emt 0:00:00] [#]} (49... h4 $1 $14) 50. Rf4 $1 $16 {[%emt 0:00:50]} Ke6 {[%emt 0:00:00]} 51. Kf3 {[%emt 0:00:08]} Rg8 {[%emt 0:00:00]} 52. h3 {[%emt 0:00:48]} Ke5 {[%emt 0:00:00]} 53. Rf7 {[%emt 0:00:56]} Ke6 {[%emt 0:00:00]} 54. Rh7 {[%emt 0:07:19]} Rf8+ {[%emt 0:00:00]} 55. Kg2 {[%emt 0:00:26]} Rf5 {[%emt 0:00:00] [#]} 56. Rh8 {[%emt 0:00:22]} (56. Rh6+ $1 $16 Kd7 57. g4 hxg4 58. hxg4) 56... Rg5 {[%emt 0:00:00]} (56... Kf7 $1 $14) 57. Re8+ {[%emt 0:01:07]} (57. Rh6+ $16 Kf7 58. Rh7+ Kf6 59. Rh8) 57... Kf7 $14 {[%emt 0:00:00]} 58. Rh8 {[%emt 0:07:32]} (58. Ra8 $14) 58... Ke6 $16 {[%emt 0:00:00]} 59. Rf8 {[%emt 0:00:35]} Ke7 {[%emt 0:00:00]} 60. Rf4 {[%emt 0:00:30]} Ke6 {[%emt 0:00:00]} 61. Kf3 {[%emt 0:01:44]} Rg8 {[%emt 0:00:00]} 62. g4 {[%emt 0:00:50]} (62. Rh4 $16 Ra8 63. Rxh5) 62... hxg4+ {[%emt 0:00:00]} 63. hxg4 {[%emt 0:00:01]} Rh8 {[%emt 0:04:36]} 64. Rf5 {[%emt 0:05:29]} Rh1 {[%emt 0:00:52]} 65. Kg2 {[%emt 0:02:54]} Rd1 {[%emt 0:02:40]} 66. Rf4 {[%emt 0:00:40]} Re1 {[%emt 0:00:45]} 67. Rf3 {[%emt 0:01:30]} Ke5 {[%emt 0:01:04]} 68. Kf2 {[%emt 0:02:38]} Ra1 {[%emt 0:00:00]} 69. Rf8 {[%emt 0:00:00]} Ra2+ {[%emt 0:00:00]} 70. Kf3 {[%emt 0:00:00]} Ra1 {[%emt 0:00:00]} 71. Rf5+ {[%emt 0:00:00]} Ke6 {[%emt 0:00:00]} 72. Rf4 {[%emt 0:00:00]} Rg1 {[%emt 0:00:00]} 73. Kf2 {[%emt 0:00:00]} Rh1 {[%emt 0:00:00]} 74. Rf3 {[%emt 0:00:00]} Ke5 {[%emt 0:00:00]} 1/2-1/2

[Event "Israel National League 2024"]
[Site "Israel"]
[Date "2024.03.08"]
[Round "11.31"]
[White "Parkhov, Yair"]
[Black "Moiseenko, Alexander"]
[Result "0-1"]
[ECO "B30"]
[WhiteElo "2495"]
[BlackElo "2570"]
[Annotator "TA"]
[PlyCount "94"]
[EventDate "2024.01.07"]
[EventType "team-tourn"]
[EventCountry "ISR"]
[SourceTitle "playchess.com"]
[Source "ChessBase"]
[SourceQuality "1"]
[TimeControl "40/5400+30:1800+30"]

{[%evp 9,94,13,8,11,47,48,49,6,56,35,51,55,55,40,43,19,39,15,27,29,32,33,70,68,59,63,118,39,47,31,49,0,0,0,0,0,12,0,10,-45,0,-67,-24,-106,0,-286,-295,-300,-302,-293,-303,-295,-284,-277,-279,-293,-288,-475,-437,-706,-671,-1325,-707,-1646,-1563,-1287,-1156,-3346,-2940,-12849,-12835,-5165,-1407,-29970,-29972,-29971,-29972,-29970,-29969,-29977,-29978,-29982,-29983,-29983,-29984,-29979,-29979]} 1. e4 {[%emt 0:07:14]} c5 {[%emt 0:00:25]} 2. Nf3 {[%emt 0:00:04]} Nc6 {[%emt 0:01:14]} 3. Bb5 {[%emt 0:00:06]} e6 {[%emt 0:00:12]} 4. Bxc6 {[%emt 0:00:06]} bxc6 {[%emt 0:00:04]} 5. b3 {[%emt 0:00:04]} Ne7 {[%emt 0:08:31]} 6. Bb2 {[%emt 0:00:32]} Ng6 {[%emt 0:01:33]} 7. h4 $1 {[%emt 0:01:06]} h5 {[%emt 0:00:29]} 8. d3 {[%emt 0:13:07] White is slightly better.} f6 {[%emt 0:12:31]} (8... d5 $11) 9. e5 $1 $14 {[%emt 0:01:33]} Nxe5 {[%emt 0:07:50]} 10. Nxe5 {[%emt 0:09:34]} fxe5 {[%emt 0:00:22]} 11. Nd2 {[%emt 0:01:03]} d6 {[%emt 0:04:58]} 12. Qf3 {[%emt 0:06:04][%mdl 1024] White has compensation.} Bd7 {[%emt 0:14:07]} 13. O-O-O {[%emt 0:02:48]} Qf6 {[%emt 0:00:38]} 14. Qe2 {[%emt 0:02:08]} Be7 {[%emt 0:02:46]} 15. Kb1 {[%emt 0:05:09]} O-O {[%emt 0:02:02]} 16. Ne4 {[%emt 0:01:58]} Qg6 {[%emt 0:02:20]} 17. Rdg1 {[%emt 0:09:44]} c4 {[%emt 0:06:01]} 18. g4 {[%emt 0:03:41]} (18. dxc4 $16 {[%cal Oc4c5]} Rf4 19. f3) 18... cxd3 {[%emt 0:00:56]} 19. cxd3 {[%emt 0:00:04]} Be8 {[%emt 0:03:55]} 20. Rh2 {[%emt 0:09:26]} Rf4 {[%emt 0:02:02]} 21. f3 {[%emt 0:02:46]} (21. Rhg2 Rxg4 22. Rxg4 hxg4 $11) 21... hxg4 {[%emt 0:04:32]} 22. fxg4 {[%emt 0:01:13]} c5 {[%emt 0:06:23]} 23. h5 {[%emt 0:03:05]} Qf7 {[%emt 0:05:26]} 24. h6 {[%emt 0:03:43]} (24. Bc1 $11) 24... g5 {[%emt 0:05:52]} (24... g6 $5) 25. h7+ {[%emt 0:01:50]} (25. Bc1 $11) 25... Kh8 $15 {[%emt 0:00:03]} 26. Rh6 {[%emt 0:02:54][%cal Oe4d6]} Bc6 {[%emt 0:01:46]} ({Better is} 26... Bb5 $17 {aiming for ...Rf8.} 27. Bc1 Rf3) 27. Nxc5 $2 {[%emt 0:05:43][%mdl 8192] White is now going downhill.} Rf2 $19 {[%emt 0:02:04]} 28. Qe3 {[%emt 0:00:09][%cal Og1c1]} Bf8 {[%emt 0:03:00]} 29. Rh5 {[%emt 0:07:14]} Rxb2+ {[%emt 0:00:58]} (29... dxc5 30. Bxe5+ (30. Qxg5 $2 Rxb2+ 31. Kc1 Rxa2 $19) 30... Bg7 31. Bxg7+ (31. Qxg5 $2 Rf1+ 32. Rxf1 Qxf1+ 33. Kb2 Qe2+ 34. Ka3 Qxe5 $19) 31... Kxg7 32. h8=B+ (32. Qxc5 $2 Qf6 $19) 32... Rxh8 33. Qxg5+ (33. Rxg5+ Kf8 $18) 33... Qg6 34. Qxg6+ (34. Qxc5 $2 Qxd3+ 35. Ka1 Rf1+ 36. Kb2 Qb1+ 37. Ka3 Rxh5 $19) 34... Kxg6 35. Rxh8 $18) 30. Kxb2 {[%emt 0:00:04]} dxc5 {[%emt 0:00:04]} 31. Rxg5 {[%emt 0:00:05]} (31. Qxe5+ $2 Bg7 $19) 31... Bg7 {[%emt 0:00:07] A strong pair of Bishops.} 32. Qxc5 {[%emt 0:00:09]} Rc8 {[%emt 0:00:58] Hoping for ...e4+.} 33. Rc1 $2 {[%emt 0:01:57]} (33. Rxg7 {is a better defense.} Qxg7 34. Rc1 e4+ (34... Qxh7 35. d4 $17) (34... Qxg4 35. Qxa7 Ra8 36. Qf2 $17) (34... Kxh7 $2 35. Kb1 $19) 35. d4) 33... Bb7 {[%emt 0:01:16]} (33... Kxh7 34. Qd6 Bb7 35. Rxc8 Bxc8 36. Qd8 $17) 34. Qd6 {[%emt 0:00:31]} (34. Rxg7 $142 Qxg7 35. Qxa7 e4+ (35... Qxh7 36. Rxc8+ Bxc8 37. Qb8 $11) 36. d4 Rxc1 (36... Kxh7 37. Rxc8 Bxc8 38. Qc5 $19) 37. Kxc1) 34... e4+ {[%emt 0:00:49]} ({Not} 34... Kxh7 35. Rxc8 Bxc8 36. Qd8 $17) 35. d4 {[%emt 0:00:26] [#] Strongly threatening Rxc8+.} Qf2+ {[%emt 0:00:50]} (35... Kxh7 $2 {loses.} 36. Rh1+ Bh6 (36... Kg8 $2 37. Qh2 $18) 37. Rgh5 Qf2+ 38. Ka3 $18) 36. Ka3 {[%emt 0:00:34]} Rxc1 {[%emt 0:00:26]} 37. Rxg7 {[%emt 0:00:12]} Kxg7 {[%emt 0:00:09]} 38. Qe7+ {[%emt 0:00:19]} Kh8 {[%emt 0:00:09][%cal Oc1c2] [#] ( -> ...Rc2!)} 39. Qxb7 {[%emt 0:00:56]} Qf8+ {[%emt 0:00:16]} 40. Kb2 {[%emt 0:00:06]} Rh1 {[%emt 0:01:10] Threatens to win with ...Rh2+.} 41. Qxe4 {[%emt 0:30:15]} Rh2+ {[%emt 0:30:14] Black mates.} 42. Kc3 {[%emt 0:00:06]} Qc8+ {[%emt 0:00:59]} 43. Kb4 {[%emt 0:00:07]} Qb8+ {[%emt 0:00:54]} 44. Kc3 {[%emt 0:01:21]} a5 {[%emt 0:00:00]} 45. d5 {[%emt 0:00:00]} Qc7+ {[%emt 0:00:00]} 46. Qc4 {[%emt 0:00:00]} Qe5+ {[%emt 0:00:00]} 47. Kd3 {[%emt 0:00:00]} Qxd5+ {[%emt 0:00:00] Weighted Error Value: White=0.99/Black=0.29 (precise) .  Loses game:     	White=1     	---        Mistake:       	White=5     	Black=3      Inaccurate:     	White=3     	Black=3      OK:         	White=7     	Black=13     Best:        	White=1     	Black=3      Strong:       	White=2     	---} 0-1

[Event "Israel National League 2024"]
[Site "Israel"]
[Date "2024.03.08"]
[Round "11.32"]
[White "Sutovsky, Emil"]
[Black "Gorodetzky, Matan"]
[Result "1-0"]
[ECO "C60"]
[WhiteElo "2597"]
[BlackElo "2325"]
[Annotator "TA"]
[PlyCount "101"]
[EventDate "2024.01.07"]
[EventType "team-tourn"]
[EventCountry "ISR"]
[SourceTitle "playchess.com"]
[Source "ChessBase"]
[SourceQuality "1"]
[TimeControl "40/5400+30:1800+30"]

{[%evp 41,101,47,52,43,125,125,119,112,259,272,335,300,297,297,381,225,197,41,0,0,0,0,0,-192,-194,-1153,-908,-1376,-1391,-2201,472,419,974,473,451,456,533,536,1195,1008,29974,672,5406,1443,1078,784,1046,750,1860,1327,1391,1266,2312,2155,5628,5628,5628,4827,29971,29972,29982,29983]} 1. e4 {[%emt 0:00:04]} e5 {[%emt 0:07:35]} 2. Nf3 {[%emt 0:00:58]} Nc6 {[%emt 0:00:06]} 3. Bb5 {[%emt 0:00:07]} Nge7 {[%emt 0:00:07]} 4. Nc3 {[%emt 0:00:06]} Ng6 {[%emt 0:00:05]} 5. h4 {[%emt 0:00:04]} Be7 {[%emt 0:00:20]} 6. Nd5 {[%emt 0:16:28]} Bxh4 {[%emt 0:13:32]} 7. Nxh4 {[%emt 0:24:23]} Nxh4 {[%emt 0:00:07]} 8. d4 {[%emt 0:00:03]} Nxg2+ {[%emt 0:18:57]} 9. Kf1 {[%emt 0:00:18]} Nxd4 {[%emt 0:00:18]} 10. Qg4 {[%emt 0:25:55]} Ne6 {[%emt 0:00:27]} 11. Qxg2 {[%emt 0:02:05]} c6 {[%emt 0:01:38]} 12. Bd3 {[%emt 0:05:22]} d6 {[%emt 0:02:09]} 13. Ne3 {[%emt 0:03:16]} g6 {[%emt 0:04:45]} 14. b3 {[%emt 0:00:01]} Nf4 {[%emt 0:01:40]} 15. Qf3 {[%emt 0:03:07]} Be6 {[%emt 0:04:44]} 16. Bc4 {[%emt 0:01:16]} h5 {[%emt 0:06:35]} 17. Ba3 {[%emt 0:01:11]} Qe7 {[%emt 0:07:26]} 18. Ng2 {[%emt 0:01:14]} Bxc4+ {[%emt 0:01:03]} 19. bxc4 {[%emt 0:00:02]} Ne6 {[%emt 0:00:13]} 20. Qg3 {[%emt 0:04:15]} Rd8 {[%emt 0:02:19]} 21. Rd1 {[%emt 0:00:48]} b6 {[%emt 0:01:06]} 22. Rd3 {[%emt 0:03:07]} c5 {[%emt 0:07:07]} (22... Rh7 $14) 23. Bc1 $16 {[%emt 0:02:48]} Qb7 {[%emt 0:01:17]} 24. Bg5 {[%emt 0:00:12]} Rd7 {[%emt 0:01:21]} (24... Nxg5 $16 {is a better defense.} 25. Qxg5 Qxe4) 25. Ne3 $18 {[%emt 0:03:31]} b5 {[%emt 0:08:07]} 26. Nd5 {[%emt 0:00:03]} bxc4 {[%emt 0:00:37]} 27. Nf6+ {[%emt 0:00:18]} Kd8 {[%emt 0:01:58]} 28. Nxd7+ {[%emt 0:00:17]} (28. Rd5 $142 Kc8 29. Nxd7) 28... Kxd7 $18 {[%emt 0:00:09]} 29. Re3 $2 {[%emt 0:00:35]} (29. Rd5 $18 f6 30. Bxf6) 29... Qb1+ $14 {[%emt 0:01:22]} 30. Kg2 {[%emt 0:01:30]} Qxc2 {[%emt 0:00:02]} 31. Rhe1 {[%emt 0:00:20]} h4 {[%emt 0:01:16]} 32. Bxh4 $2 {[%emt 0:00:31]} (32. Qh3 $11 {and White has nothing to worry.} Qd2 33. Bf6 (33. Bxh4 $2 c3 $19)) 32... g5 $1 $19 {[%emt 0:00:31]} (32... Nf4+ 33. Kg1 Rh5 34. Bf6 $16) 33. Ra3 $2 {[%emt 0:01:13]} (33. Bxg5 Rg8 34. Rc3) 33... Nf4+ $19 {[%emt 0:01:56]} (33... gxh4 34. Rxa7+ Kc6 35. Ra6+ Kd7 36. Ra7+ Kc6 37. Ra6+ Kc7 38. Ra7+ Kc6 $11) 34. Kg1 {[%emt 0:00:16]} Rxh4 {[%emt 0:00:29]} (34... gxh4 35. Rxa7+ Kc6 36. Qa3 $18) 35. Qxg5 {[%emt 0:00:21]} Nh3+ $4 {[%emt 0:00:01][%mdl 8192]} (35... Ne2+ $19 {and all is fine.} 36. Kf1 Rh1+ (36... Rxe4 $2 {perishes.} 37. Qf5+ Kc6 38. Qxf7 $18) 37. Kg2 Qxe4+ (37... Rxe1 38. Qf5+ Kd8 39. Qg5+ Kd7 40. Qf5+ Kd8 41. Qg5+ Kd7 $11) 38. f3 Nf4+ (38... Rxe1 $2 39. Rxa7+ Kc6 40. fxe4 $19) 39. Qxf4 Qxf4 40. Rxh1 Qd2+ 41. Kh3 c3 42. Rxa7+ Ke6) 36. Rxh3 $1 $18 {[%emt 0:00:02]} Rf4 {[%emt 0:00:37] [#]} (36... Rxh3 $142 37. Qf5+ Kc7) 37. Rf3 {[%emt 0:01:19]} (37. f3 $142 $3 {[%mdl 512]} Qd2 (37... Qd3 38. Rh8) 38. Rf1 Qd4+ 39. Kg2 Qb2+ 40. Rf2) 37... Rxf3 $18 {[%emt 0:01:24]} 38. Qg4+ {[%emt 0:00:01]} f5 {[%emt 0:00:08]} 39. Qxf3 {[%emt 0:00:03]} f4 {[%emt 0:00:04]} 40. Qa3 {[%emt 0:00:57]} Qd2 {[%emt 0:00:36]} 41. Rc1 {[%emt 0:31:53]} (41. Rb1 $142 Ke7 42. Qh3 (42. Qxa7+ Ke6 $18) 42... Qb4 43. Qh7+ (43. Rxb4 cxb4 44. Qh7+ Ke8 $18) 43... Kd8 44. Rxb4 cxb4 45. Qxa7 b3 46. a4) 41... Qe2 {[%emt 0:30:35]} 42. Qa4+ {[%emt 0:00:00]} (42. Qh3+ $142 Kd8 43. Qh8+ Kd7 44. Qh7+ Kd8 45. Rb1 (45. Qxa7 Qg4+ 46. Kf1 Qh3+ 47. Ke1 c3 $18) 45... Qg4+ 46. Kf1) 42... Ke7 {[%emt 0:00:00]} 43. Qxc4 {[%emt 0:00:00]} ({Weaker is} 43. Rxc4 Qg4+ 44. Kf1 f3 $16) 43... Qg4+ {[%emt 0:00:00]} 44. Kf1 {[%emt 0:00:00]} f3 {[%emt 0:00:00]} 45. Rd1 {[%emt 0:00:00]} Qg2+ {[%emt 0:00:00]} 46. Ke1 {[%emt 0:00:00]} Qg1+ {[%emt 0:00:00]} 47. Qf1 {[%emt 0:00:00]} Qg8 {[%emt 0:00:00]} 48. Qd3 {[%emt 0:00:00]} Qg1+ {[%emt 0:00:00] [#]} 49. Kd2 $1 {[%emt 0:00:00]} Qxf2+ {[%emt 0:00:00]} 50. Kc3 {[%emt 0:00:00]} Ke8 {[%emt 0:00:00]} 51. Qxd6 {[%emt 0:00:00]} 1-0